fUST/lending_fUST_20260313
["ID","MTS","AMOUNT","RATE_DAILY","PERIOD"]
[408299336,1773385838667,-284.0,8.378e-05,2]
[408299337,1773385838676,-10000.0,8.379e-05,2]
[408299338,1773385838686,-480.0,9.215e-05,2]
[408299339,1773385838697,-420.0,9.216e-05,2]
[408299340,1773385838707,-75460.3706902,9.273e-05,2]
[408299341,1773385838719,-5012.58748994,9.273e-05,2]
[408299342,1773385838730,-15527.04181986,9.273e-05,2]
[408299343,1773385838740,-155.0,9.3e-05,2]
[408299344,1773385838750,-151.0,9.3e-05,2]
[408299345,1773385838760,-151.0,9.3e-05,2]
[408299346,1773385838769,-500.0,9.373e-05,2]
[408299347,1773385838778,-500.0,9.373e-05,2]
[408299348,1773385838788,-500.0,9.373e-05,2]
[408299349,1773385838798,-384.00904845,9.373e-05,2]
[408299350,1773385838808,-500.0,9.373e-05,2]
[408299351,1773385838817,-500.31579848,9.373e-05,2]
[408299352,1773385838826,-325.07615001,9.373e-05,2]
[408299353,1773385838835,-500.54685724,9.373e-05,2]
[408299354,1773385838845,-500.57083439,9.373e-05,2]
[408299355,1773385838854,-500.0,9.373e-05,2]
[408299356,1773385838863,-500.0,9.373e-05,2]
[408299357,1773385838872,-500.0,9.373e-05,2]
[408299358,1773385838881,-500.0,9.373e-05,2]
[408299359,1773385838890,-500.0,9.373e-05,2]
[408299360,1773385838900,-500.0,9.373e-05,2]
[408299361,1773385838909,-151.0,9.373e-05,2]
[408299362,1773385838918,-151.0,9.373e-05,2]
[408299363,1773385838931,-1000000.0,9.4e-05,2]
[408299364,1773385838940,-151.0,9.4e-05,2]
[408299365,1773385838949,-151.0,9.4e-05,2]
[408299366,1773385838958,-151.0,9.4e-05,2]
[408299367,1773385838969,-151.0,9.4e-05,2]
[408299368,1773385838978,-156.0,9.4e-05,2]
[408299369,1773385838987,-500.0,9.474e-05,2]
[408299370,1773385839000,-500.0,9.474e-05,2]
[408299371,1773385839009,-500.0,9.474e-05,2]
[408299372,1773385839018,-500.0,9.474e-05,2]
[408299373,1773385839027,-500.0,9.474e-05,2]
[408299374,1773385839036,-500.0,9.474e-05,2]
[408299375,1773385839047,-500.0,9.474e-05,2]
[408299376,1773385839057,-500.0,9.474e-05,2]
[408299377,1773385839067,-500.0,9.474e-05,2]
[408299378,1773385839076,-500.0,9.474e-05,2]
[408299379,1773385839085,-500.0,9.474e-05,2]
[408299380,1773385839094,-192.98574021,9.474e-05,2]
[408299381,1773385839104,-1253.60132952,9.474e-05,2]
[408299382,1773385839113,-151.0,9.504e-05,2]
[408299383,1773385839122,-154.932643,9.504e-05,2]
[408299384,1773385839132,-5165.41097978,9.596e-05,2]
[408299385,1773385839141,-5663.73561913,9.696e-05,2]
[408299386,1773385839151,-1000.0,9.7e-05,2]
[408299387,1773385839160,-1000.0,9.7e-05,2]
[408299388,1773385839170,-1000.0,9.7e-05,2]
[408299389,1773385839179,-1000.0,9.7e-05,2]
[408299390,1773385839189,-1000.0,9.7e-05,2]
[408299391,1773385839198,-1000.0,9.7e-05,2]
[408299392,1773385839207,-1000.0,9.7e-05,2]
[408299393,1773385839216,-1000.0,9.7e-05,2]
[408299394,1773385839226,-1000.0,9.7e-05,2]
[408299395,1773385839235,-1000.0,9.7e-05,2]
[408299396,1773385839244,-1000.0,9.7e-05,2]
[408299397,1773385839254,-1000.0,9.7e-05,2]
[408299398,1773385839263,-1000.0,9.7e-05,2]
[408299399,1773385839272,-1000.0,9.7e-05,2]
[408299400,1773385839282,-1000.0,9.7e-05,2]
[408299401,1773385839292,-1000.0,9.7e-05,2]
[408299402,1773385839301,-954.93312797,9.7e-05,2]
[408299403,1773385839312,-167.9327807,9.75e-05,2]
[408299404,1773385839321,-351.0,9.8e-05,2]
[408299405,1773385839331,-245.87190352,9.8e-05,2]
[408299406,1773385839340,-498.92000916,9.8e-05,2]
[408299407,1773385839350,-453.53798188,9.9e-05,2]
[408299408,1773385839359,-299.72299154,9.9e-05,2]
[408299409,1773385839369,-501.01786177,9.921e-05,2]
[408299410,1773385839378,-1000.0,9.921e-05,2]
[408299411,1773385839387,-1000.0,9.921e-05,2]
[408299412,1773385839397,-505.4567558,9.921e-05,2]
[408299413,1773385839407,-1008.71160046,9.921e-05,2]
[408299414,1773385839417,-1002.49697717,9.921e-05,2]
[408299415,1773385839426,-439.275383,9.935e-05,2]
[408299416,1773385839435,-288.03389964,0.0001,2]
[408299417,1773385839445,-464.53544734,0.0001,2]
[408299418,1773385839454,-288.03389964,0.0001,2]
[408299419,1773385839464,-288.03389964,0.0001,2]
[408299420,1773385839473,-530211.57472088,0.0001,2]
[408299421,1773385839486,-3575.0,0.0001,2]
[408299448,1773385841057,-12624.45199365,9.306e-05,2]
[408299449,1773385841066,-108875.58112288,0.0001,2]
[408299451,1773385841117,-21963.25659714,0.0001,2]
[408299641,1773386160497,-2000.0,9.08e-05,2]
[408299642,1773386161973,-2000.0,9.08e-05,2]
[408299643,1773386162304,-1000.0,9.08e-05,2]
[408299644,1773386162324,-1000.0,9.1e-05,2]
[408299645,1773386162626,-2000.0,9.1e-05,2]
[408299646,1773386164115,-2000.0,9.1e-05,2]
[408299647,1773386164995,-2000.0,9.1e-05,2]
[408299648,1773386166391,-2000.0,9.1e-05,2]
[408299649,1773386169821,-200.0,9.1e-05,2]
[408299664,1773386387838,-500.0,0.00036909,120]
[408299665,1773386387888,-5000.0,0.00036909,31]
[408299666,1773386387936,-10000.0,0.00036909,31]
[408299667,1773386387985,-5000.0,0.00036909,31]
[408299668,1773386388034,-10000.0,0.00036909,30]
[408299669,1773386388083,-683.8666,0.00036909,120]
[408299670,1773386388132,-683.8666,0.00036909,120]
[408299671,1773386388180,-683.8666,0.00036909,120]
[408299672,1773386388228,-683.8666,0.00036909,120]
[408299673,1773386388276,-683.8666,0.00036909,120]
[408299674,1773386388325,-683.8666,0.00036909,120]
[408299675,1773386388376,-5189.45482468,0.00036909,120]
[408299676,1773386388429,-1250.00741234,0.00036909,120]
[408299677,1773386388479,-500.00370617,0.00036909,120]
[408299678,1773386388529,-200.0,0.00036909,120]
[408299679,1773386388579,-202085.489272,0.00036909,60]
[408299680,1773386388627,-5459.0,0.00036909,60]
[408299681,1773386388677,-685.4734,0.00036909,120]
[408299682,1773386388729,-685.4734,0.00036909,120]
[408299683,1773386388781,-2079.9152972,0.00036909,120]
[408299684,1773386388831,-1857.7934066,0.00036909,30]
[408299685,1773386388880,-2269.54362463,0.00036909,120]
[408299686,1773386388927,-291.87355671,0.00036909,120]
[408299687,1773386389243,-1579.44650214,0.00036909,30]
[408299688,1773386389296,-1253.01330436,0.00036909,30]
[408299689,1773386389344,-1026.69778212,0.00036909,120]
[408299690,1773386389392,-974.55502179,0.00036909,120]
[408299691,1773386389440,-1097.56538385,0.00036909,60]
[408299692,1773386389488,-735.67859151,0.00036909,120]
[408299693,1773386389539,-2572.01,0.00036909,32]
[408299694,1773386389586,-1971.88805883,0.00036909,120]
[408299695,1773386389634,-2300.0,0.00036909,120]
[408299696,1773386389683,-3282.06333662,0.00036909,120]
[408299697,1773386389732,-786.47525569,0.00036909,30]
[408299698,1773386389783,-1176.14640383,0.00036909,120]
[408299699,1773386389833,-1451.38032837,0.00036909,120]
[408299700,1773386389881,-1949.58668554,0.00036909,30]
[408299701,1773386389931,-2791.20281293,0.00036909,120]
[408299702,1773386389979,-2239.01784136,0.00036909,120]
[408299703,1773386390031,-1072.46146007,0.00036909,120]
[408299704,1773386390081,-2075.10742203,0.00036909,120]
[408299705,1773386390128,-1512.8196967,0.00036909,120]
[408299706,1773386390178,-1165.64486489,0.00036909,30]
[408299707,1773386390227,-1531.50545682,0.00036909,120]
[408299708,1773386390276,-1605.33733297,0.00036909,120]
[408299709,1773386390327,-1967.20641446,0.00036909,60]
[408299710,1773386390378,-1250.77690052,0.00036909,30]
[408299711,1773386390434,-555.64100434,0.00036909,120]
[408299712,1773386390489,-228.96594052,0.00036909,120]
[408299713,1773386390543,-335.94267689,0.00036909,120]
[408299714,1773386390594,-539.68444769,0.00036909,30]
[408299715,1773386390646,-188.80612338,0.00036909,30]
[408299716,1773386390697,-579.53535881,0.00036909,120]
[408299717,1773386390751,-172.28531597,0.00036909,120]
[408299718,1773386390803,-2119.70421169,0.00036909,120]
[408299719,1773386390853,-1691.29558641,0.00036909,120]
[408299720,1773386390904,-1054.29988191,0.00036909,120]
[408299721,1773386390956,-1597.13108217,0.00036909,30]
[408299722,1773386391006,-2758.0,0.00036909,120]
[408299723,1773386391056,-1000.0,0.00036909,30]
[408299724,1773386391108,-375.38664365,0.00036909,120]
[408299725,1773386391158,-1869.9360581,0.00036909,120]
[408299726,1773386391209,-365.16623981,0.00036909,120]
[408299727,1773386391261,-180.91554874,0.00036909,120]
[408299728,1773386391316,-1050.02877456,0.00036909,60]
[408299729,1773386391369,-561.55579762,0.00036909,120]
[408299730,1773386391421,-517.62717793,0.00036909,120]
[408299731,1773386391474,-1271.94253155,0.00036909,60]
[408299732,1773386391525,-2075.58441679,0.00036909,120]
[408299733,1773386391578,-2052.92030345,0.00036909,120]
[408299734,1773386391628,-202.82634567,0.00036909,120]
[408299735,1773386391678,-165.87732207,0.00036909,120]
[408299736,1773386391728,-1033.26385084,0.00036909,30]
[408299737,1773386391777,-159.7994173,0.00036909,30]
[408299738,1773386391825,-2909.61765526,0.00036909,31]
[408299739,1773386391873,-1036.85897876,0.00036909,120]
[408299740,1773386391922,-1026.04396801,0.00036909,120]
[408299741,1773386391979,-200.0,0.00036909,120]
[408299742,1773386392036,-161.80008452,0.00036909,120]
[408299743,1773386392084,-2467.67530368,0.00036909,60]
[408299744,1773386392131,-3231.49405891,0.00036909,120]
[408299745,1773386392180,-1119.10586989,0.00036909,120]
[408299746,1773386392229,-349.38895995,0.00036909,30]
[408299747,1773386392278,-159.3981571,0.00036909,120]
[408299748,1773386392327,-3049.14205695,0.00036909,120]
[408299749,1773386392381,-600.06213924,0.00036909,30]
[408299750,1773386392451,-974.12342863,0.00036909,120]
[408299751,1773386392508,-900.87387881,0.00036909,120]
[408299752,1773386392561,-5000.0,0.00036909,120]
[408299753,1773386392615,-1539.04253812,0.00036909,120]
[408299754,1773386392665,-410.0,0.00036909,120]
[408299755,1773386392720,-486.26,0.00036909,30]
[408299756,1773386392777,-154489.0203343,0.00036909,120]
[408299757,1773386392830,-62445.11503004,0.00036909,120]
[408299758,1773386392879,-500.0,0.00036909,120]
[408299759,1773386392926,-500.0,0.00036909,120]
[408299760,1773386392974,-500.0,0.00036909,120]
[408299761,1773386393022,-500.0,0.00036909,120]
[408299762,1773386393070,-500.0,0.00036909,120]
[408299763,1773386393118,-500.0,0.00036909,120]
[408299764,1773386393165,-500.0,0.00036909,120]
[408299765,1773386393213,-500.0,0.00036909,120]
[408299766,1773386393264,-500.0,0.00036909,120]
[408299767,1773386393328,-500.0,0.00036909,120]
[408299768,1773386393383,-500.0,0.00036909,120]
[408299769,1773386393435,-500.0,0.00036909,120]
[408299770,1773386393489,-500.0,0.00036909,120]
[408299771,1773386393541,-500.0,0.00036909,120]
[408299772,1773386393593,-500.0,0.00036909,120]
[408299773,1773386393646,-500.0,0.00036909,120]
[408299774,1773386393697,-500.0,0.00036909,120]
[408299775,1773386393754,-500.0,0.00036909,120]
[408299776,1773386393807,-500.0,0.00036909,120]
[408299777,1773386393858,-500.0,0.00036909,120]
[408299778,1773386393910,-500.0,0.00036909,120]
[408299779,1773386393960,-500.0,0.00036909,120]
[408299780,1773386394009,-500.0,0.00036909,120]
[408299781,1773386394059,-500.0,0.00036909,120]
[408299782,1773386394110,-500.0,0.00036909,120]
[408299783,1773386394160,-500.0,0.00036909,120]
[408299784,1773386394209,-500.0,0.00036909,120]
[408299785,1773386394257,-500.0,0.00036909,120]
[408299786,1773386394314,-500.0,0.00036909,120]
[408299787,1773386394368,-477.7681096,0.00036909,120]
[408299788,1773386394419,-500.0,0.00036909,120]
[408299789,1773386394470,-500.0,0.00036909,120]
[408299790,1773386394526,-500.0,0.00036909,120]
[408299791,1773386394576,-500.0,0.00036909,120]
[408299792,1773386394627,-500.0,0.00036909,120]
[408299793,1773386394942,-500.0,0.00036909,120]
[408299794,1773386394993,-332.24320485,0.00036909,120]
[408299795,1773386395043,-500.0,0.00036909,120]
[408299796,1773386395093,-500.0,0.00036909,120]
[408299797,1773386395145,-500.0,0.00036909,120]
[408299798,1773386395195,-500.0,0.00036909,120]
[408299799,1773386395244,-500.0,0.00036909,120]
[408299800,1773386395293,-500.0,0.00036909,120]
[408299801,1773386395343,-500.0,0.00036909,120]
[408299802,1773386395399,-500.0,0.00036909,120]
[408299803,1773386395452,-500.0,0.00036909,120]
[408299804,1773386395504,-366.66251389,0.00036909,120]
[408299805,1773386395559,-599.24,0.00036909,120]
[408299806,1773386395614,-599.24,0.00036909,120]
[408299807,1773386395670,-599.24,0.00036909,120]
[408299808,1773386395727,-599.24,0.00036909,120]
[408299809,1773386395784,-599.24,0.00036909,120]
[408299810,1773386395839,-599.24,0.00036909,120]
[408299811,1773386395895,-599.24,0.00036909,120]
[408299812,1773386395953,-599.24,0.00036909,120]
[408299813,1773386396010,-599.24,0.00036909,120]
[408299814,1773386396065,-599.24,0.00036909,120]
[408299815,1773386396120,-599.24,0.00036909,120]
[408299816,1773386396174,-599.24,0.00036909,120]
[408299817,1773386396229,-599.24,0.00036909,120]
[408299818,1773386396285,-599.24,0.00036909,120]
[408299819,1773386396339,-599.24,0.00036909,120]
[408299820,1773386396395,-599.24,0.00036909,120]
[408299821,1773386396452,-599.24,0.00036909,120]
[408299822,1773386396510,-599.24,0.00036909,120]
[408299823,1773386396567,-599.24,0.00036909,120]
[408299824,1773386396624,-599.24,0.00036909,120]
[408299825,1773386396681,-599.24,0.00036909,120]
[408299826,1773386396735,-599.24,0.00036909,120]
[408299827,1773386396790,-599.24,0.00036909,120]
[408299828,1773386396859,-599.27335668,0.00036909,120]
[408299829,1773386396915,-500.0,0.00036909,120]
[408299830,1773386396969,-500.0,0.00036909,120]
[408299831,1773386397025,-500.0,0.00036909,120]
[408299832,1773386397080,-500.0,0.00036909,120]
[408299833,1773386397133,-500.0,0.00036909,120]
[408299834,1773386397186,-500.0,0.00036909,120]
[408299835,1773386397237,-500.0,0.00036909,120]
[408299836,1773386397289,-500.0,0.00036909,120]
[408299837,1773386397342,-500.0,0.00036909,120]
[408299838,1773386397400,-500.0,0.00036909,120]
[408299839,1773386397455,-500.0,0.00036909,120]
[408299840,1773386397508,-500.0,0.00036909,120]
[408299841,1773386397563,-527.55678006,0.00036909,120]
[408299842,1773386397616,-500.0,0.00036909,120]
[408299843,1773386397670,-318.58661074,0.00036909,120]
[408299844,1773386397724,-500.0,0.00036909,120]
[408299845,1773386397780,-500.0,0.00036909,120]
[408299846,1773386397834,-500.0,0.00036909,120]
[408299847,1773386397888,-500.0,0.00036909,120]
[408299848,1773386397941,-500.0,0.00036909,120]
[408299849,1773386397993,-500.0,0.00036909,120]
[408299850,1773386398051,-500.0,0.00036909,120]
[408299851,1773386398104,-500.0,0.00036909,120]
[408299852,1773386398158,-500.0,0.00036909,120]
[408299853,1773386398211,-500.0,0.00036909,120]
[408299854,1773386398264,-500.0,0.00036909,120]
[408299855,1773386398323,-500.0,0.00036909,120]
[408299856,1773386398378,-500.0,0.00036909,120]
[408299857,1773386398433,-500.0,0.00036909,120]
[408299858,1773386398487,-500.0,0.00036909,120]
[408299859,1773386398540,-878.22,0.00036909,120]
[408299860,1773386398594,-878.22,0.00036909,120]
[408299861,1773386398646,-878.22,0.00036909,120]
[408299862,1773386398699,-878.22,0.00036909,120]
[408299863,1773386398752,-878.22,0.00036909,120]
[408299864,1773386398805,-878.22,0.00036909,120]
[408299865,1773386398857,-878.22,0.00036909,120]
[408299866,1773386398916,-500.0,0.00036909,120]
[408299867,1773386398971,-878.22,0.00036909,120]
[408299868,1773386399025,-878.22,0.00036909,120]
[408299869,1773386399081,-878.22,0.00036909,120]
[408299870,1773386399138,-878.22,0.00036909,120]
[408299871,1773386399193,-878.22,0.00036909,120]
[408299872,1773386399250,-878.22,0.00036909,120]
[408299873,1773386399311,-500.0,0.00036909,120]
[408299874,1773386399368,-878.22,0.00036909,120]
[408299875,1773386399426,-500.0,0.00036909,120]
[408299876,1773386399480,-507.16371872,0.00036909,120]
[408299877,1773386399533,-878.22,0.00036909,120]
[408299878,1773386399588,-500.0,0.00036909,120]
[408299879,1773386399643,-878.22,0.00036909,120]
[408299880,1773386399698,-878.22,0.00036909,120]
[408299881,1773386399754,-878.22,0.00036909,120]
[408299882,1773386399810,-500.0,0.00036909,120]
[408299883,1773386399866,-878.22,0.00036909,120]
[408299884,1773386399922,-878.22,0.00036909,120]
[408299885,1773386399976,-878.22,0.00036909,120]
[408299886,1773386400029,-878.22,0.00036909,120]
[408299887,1773386400088,-878.22,0.00036909,120]
[408299888,1773386400147,-878.29809928,0.00036909,120]
[408299889,1773386400203,-500.0,0.00036909,120]
[408299890,1773386400259,-500.0,0.00036909,120]
[408299891,1773386400319,-500.0,0.00036909,120]
[408299892,1773386400375,-500.0,0.00036909,120]
[408299893,1773386400434,-500.0,0.00036909,120]
[408299894,1773386400493,-500.0,0.00036909,120]
[408299895,1773386400551,-500.0,0.00036909,120]
[408299896,1773386400610,-500.0,0.00036909,120]
[408299897,1773386400891,-500.0,0.00036909,120]
[408299898,1773386400946,-152.45712105,0.00036909,120]
[408299899,1773386401003,-500.0,0.00036909,120]
[408299900,1773386401058,-500.0,0.00036909,120]
[408299901,1773386401113,-500.0,0.00036909,120]
[408299902,1773386401167,-500.0,0.00036909,120]
[408299903,1773386401220,-500.0,0.00036909,120]
[408299904,1773386401275,-500.0,0.00036909,120]
[408299905,1773386401330,-500.0,0.00036909,120]
[408299906,1773386401383,-500.0,0.00036909,120]
[408299907,1773386401437,-500.0,0.00036909,120]
[408299908,1773386401490,-500.0,0.00036909,120]
[408299909,1773386401542,-500.0,0.00036909,120]
[408299910,1773386401598,-500.0,0.00036909,120]
[408299911,1773386401650,-554.87360739,0.00036909,120]
[408299912,1773386401705,-500.0,0.00036909,120]
[408299913,1773386401760,-500.0,0.00036909,120]
[408299914,1773386401817,-281.43,0.00036909,120]
[408299915,1773386401875,-1768.27,0.00036909,120]
[408299916,1773386401932,-1768.27,0.00036909,120]
[408299917,1773386401994,-1768.27,0.00036909,120]
[408299918,1773386402063,-1768.27,0.00036909,120]
[408299919,1773386402121,-1768.27,0.00036909,120]
[408299920,1773386402174,-1768.27,0.00036909,120]
[408299921,1773386402231,-1768.27,0.00036909,120]
[408299922,1773386402287,-1768.27,0.00036909,120]
[408299923,1773386402339,-500.0,0.00036909,120]
[408299924,1773386402393,-1768.27,0.00036909,120]
[408299925,1773386402447,-531.54269554,0.00036909,120]
[408299926,1773386402501,-500.0,0.00036909,120]
[408299927,1773386402552,-1768.27,0.00036909,120]
[408299928,1773386402607,-500.0,0.00036909,120]
[408299929,1773386402662,-500.0,0.00036909,120]
[408299930,1773386402717,-500.0,0.00036909,120]
[408299931,1773386402770,-1768.27,0.00036909,120]
[408299932,1773386402821,-500.0,0.00036909,120]
[408299933,1773386402872,-500.0,0.00036909,120]
[408299934,1773386402925,-1768.27,0.00036909,120]
[408299935,1773386402979,-1768.27,0.00036909,120]
[408299936,1773386403032,-626.46083233,0.00036909,120]
[408299937,1773386403085,-500.0,0.00036909,120]
[408299938,1773386403137,-1768.27,0.00036909,120]
[408299939,1773386403189,-500.0,0.00036909,120]
[408299940,1773386403241,-500.0,0.00036909,120]
[408299941,1773386403297,-1768.27,0.00036909,120]
[408299942,1773386403352,-1768.27,0.00036909,120]
[408299943,1773386403406,-500.0,0.00036909,120]
[408299944,1773386403461,-500.0,0.00036909,120]
[408299945,1773386403514,-1768.27,0.00036909,120]
[408299946,1773386403567,-1768.27,0.00036909,120]
[408299947,1773386403618,-500.0,0.00036909,120]
[408299948,1773386403672,-211.02894037,0.00036909,120]
[408299949,1773386403726,-1768.27,0.00036909,120]
[408299950,1773386403778,-500.0,0.00036909,120]
[408299951,1773386403830,-1768.27,0.00036909,120]
[408299952,1773386403885,-500.0,0.00036909,120]
[408299953,1773386403937,-1768.27,0.00036909,120]
[408299954,1773386403989,-500.0,0.00036909,120]
[408299955,1773386404041,-1768.27,0.00036909,120]
[408299956,1773386404094,-500.0,0.00036909,120]
[408299957,1773386404147,-1768.27,0.00036909,120]
[408299958,1773386404199,-1768.48573231,0.00036909,120]
[408299959,1773386404251,-633.22772444,0.00036909,120]
[408299960,1773386404302,-1743.1,0.00036909,120]
[408299961,1773386404353,-1743.1,0.00036909,120]
[408299962,1773386404407,-1743.1,0.00036909,120]
[408299963,1773386404460,-500.0,0.00036909,120]
[408299964,1773386404513,-1743.1,0.00036909,120]
[408299965,1773386404565,-500.0,0.00036909,120]
[408299966,1773386404618,-500.0,0.00036909,120]
[408299967,1773386404673,-1743.1,0.00036909,120]
[408299968,1773386404726,-500.0,0.00036909,120]
[408299969,1773386404780,-1743.1,0.00036909,120]
[408299970,1773386404836,-500.0,0.00036909,120]
[408299971,1773386404890,-1743.1,0.00036909,120]
[408299972,1773386404943,-500.0,0.00036909,120]
[408299973,1773386404998,-500.0,0.00036909,120]
[408299974,1773386405051,-1743.1,0.00036909,120]
[408299975,1773386405106,-554.12656759,0.00036909,120]
[408299976,1773386405162,-500.0,0.00036909,120]
[408299977,1773386405216,-1743.1,0.00036909,120]
[408299978,1773386405271,-500.0,0.00036909,120]
[408299979,1773386405333,-1743.1,0.00036909,120]
[408299980,1773386405390,-500.0,0.00036909,120]
[408299981,1773386405447,-1743.1,0.00036909,120]
[408299982,1773386405502,-500.0,0.00036909,120]
[408299983,1773386405559,-1743.1,0.00036909,120]
[408299984,1773386405613,-500.0,0.00036909,120]
[408299985,1773386405668,-500.0,0.00036909,120]
[408299986,1773386405724,-1743.1,0.00036909,120]
[408299987,1773386405780,-500.0,0.00036909,120]
[408299988,1773386405834,-500.0,0.00036909,120]
[408299989,1773386405887,-1743.1,0.00036909,120]
[408299990,1773386405943,-500.0,0.00036909,120]
[408299991,1773386405997,-500.0,0.00036909,120]
[408299992,1773386406051,-1743.1,0.00036909,120]
[408299993,1773386406106,-500.0,0.00036909,120]
[408299994,1773386406160,-1743.1,0.00036909,120]
[408299995,1773386406214,-1743.1,0.00036909,120]
[408299996,1773386406267,-500.0,0.00036909,120]
[408299997,1773386406321,-500.0,0.00036909,120]
[408299998,1773386406376,-1743.1,0.00036909,120]
[408299999,1773386406430,-500.0,0.00036909,120]
[408300000,1773386406667,-500.0,0.00036909,120]
[408300001,1773386406721,-1743.1,0.00036909,120]
[408300002,1773386406773,-500.0,0.00036909,120]
[408300003,1773386406826,-500.0,0.00036909,120]
[408300004,1773386406877,-1743.1,0.00036909,120]
[408300005,1773386406929,-500.0,0.00036909,120]
[408300006,1773386406981,-1743.1,0.00036909,120]
[408300007,1773386407033,-500.0,0.00036909,120]
[408300008,1773386407086,-500.0,0.00036909,120]
[408300009,1773386407140,-1743.1,0.00036909,120]
[408300010,1773386407193,-500.0,0.00036909,120]
[408300011,1773386407247,-167.24540906,0.00036909,120]
[408300012,1773386407301,-500.0,0.00036909,120]
[408300013,1773386407359,-1743.1,0.00036909,120]
[408300014,1773386407418,-500.0,0.00036909,120]
[408300015,1773386407472,-500.0,0.00036909,120]
[408300016,1773386407530,-1743.18869595,0.00036909,120]
[408300017,1773386407586,-500.0,0.00036909,120]
[408300018,1773386407642,-500.0,0.00036909,120]
[408300019,1773386407693,-556.58489402,0.00036909,120]
[408300020,1773386407747,-445.01244094,0.00036909,120]
[408300021,1773386407798,-692.85,0.00036909,120]
[408300022,1773386407850,-692.85,0.00036909,120]
[408300023,1773386407901,-692.85,0.00036909,120]
[408300024,1773386407951,-692.85,0.00036909,120]
[408300025,1773386408001,-692.85,0.00036909,120]
[408300026,1773386408053,-692.85,0.00036909,120]
[408300027,1773386408105,-692.85,0.00036909,120]
[408300028,1773386408157,-692.85,0.00036909,120]
[408300029,1773386408208,-692.85,0.00036909,120]
[408300030,1773386408259,-692.85,0.00036909,120]
[408300031,1773386408311,-692.85,0.00036909,120]
[408300032,1773386408361,-692.85,0.00036909,120]
[408300033,1773386408415,-692.85,0.00036909,120]
[408300034,1773386408467,-692.85,0.00036909,120]
[408300035,1773386408519,-692.85,0.00036909,120]
[408300036,1773386408570,-692.85,0.00036909,120]
[408300037,1773386408623,-692.85,0.00036909,120]
[408300038,1773386408675,-692.85,0.00036909,120]
[408300039,1773386408726,-692.85,0.00036909,120]
[408300040,1773386408776,-692.85,0.00036909,120]
[408300041,1773386408826,-692.85,0.00036909,120]
[408300042,1773386408876,-692.85,0.00036909,120]
[408300043,1773386408925,-692.85,0.00036909,120]
[408300044,1773386408976,-693.06788651,0.00036909,120]
[408300045,1773386409026,-3054.16,0.00036909,120]
[408300046,1773386409079,-3054.16,0.00036909,120]
[408300047,1773386409130,-3054.16,0.00036909,120]
[408300048,1773386409180,-3054.16,0.00036909,120]
[408300049,1773386409230,-3054.16,0.00036909,120]
[408300050,1773386409285,-3054.16,0.00036909,120]
[408300051,1773386409336,-3054.16,0.00036909,120]
[408300052,1773386409387,-3054.16,0.00036909,120]
[408300053,1773386409439,-3054.16,0.00036909,120]
[408300054,1773386409489,-3054.16,0.00036909,120]
[408300055,1773386409538,-3054.16,0.00036909,120]
[408300056,1773386409589,-3054.16,0.00036909,120]
[408300057,1773386409639,-3054.16,0.00036909,120]
[408300058,1773386409688,-3054.16,0.00036909,120]
[408300059,1773386409739,-3054.16,0.00036909,120]
[408300060,1773386409793,-3054.16,0.00036909,120]
[408300061,1773386409844,-3054.16,0.00036909,120]
[408300062,1773386409898,-3054.16,0.00036909,120]
[408300063,1773386409948,-3054.16,0.00036909,120]
[408300064,1773386409998,-3054.16,0.00036909,120]
[408300065,1773386410048,-500.0,0.00036909,120]